Workbook

Sheet Muži dvojice
A1: XII. ročník "O putovní pohár města Benešova 2019"
A2: Průběžné výsledky - dvojice muži
A4: pořadí | B4: JMÉNO | C4: ODDÍL | D4: P | E4: D | F4: CH | G4: Celk. | H4: CELKEM | I4: Pozmámka
A5: 1 | B5: Svoboda Tomáš | C5: TJ Sokol Benešov | D5: 366 | E5: 193 | F5: 5 | G5: =E5+D5 -> 559 | H5: =G6+G5 -> 1150 | I5: MČR | K5: =MAX(E:E) -> 211
B6: Kočí Lukáš | C6: TJ Sokol Benešov | D6: 380 | E6: 211 | F6: 2 | G6: =E6+D6 -> 591 | H6: =H5 -> 1150
A7: 2 | B7: Endršt Jan | C7: SKK Rokycany | D7: 390 | E7: 180 | F7: 3 | G7: =E7+D7 -> 570 | H7: =G8+G7 -> 1141 | I7: MČR
B8: Neumann Daniel | C8: SKK Rokycany | D8: 390 | E8: 181 | F8: 1 | G8: =E8+D8 -> 571 | H8: =H7 -> 1141
A9: 3 | B9: Vymazal Pavel | C9: KK Konstruktiva Praha | D9: 355 | E9: 209 | F9: 4 | G9: =E9+D9 -> 564 | H9: =G10+G9 -> 1112 | I9: MČR
B10: Zahrádka Zdeněk | C10: KK Konstruktiva Praha | D10: 369 | E10: 179 | F10: 3 | G10: =E10+D10 -> 548 | H10: =H9 -> 1112
A11: 4 | B11: Endršt Jan | C11: SKK Rokycany | D11: 384 | E11: 180 | F11: 4 | G11: =E11+D11 -> 564 | H11: =G12+G11 -> 1092
B12: Rada Stanislav | C12: SKK Rokycany | D12: 363 | E12: 165 | F12: 7 | G12: =E12+D12 -> 528 | H12: =H11 -> 1092
A13: 5 | B13: Rusín František | C13: KK Slavoj Praha | D13: 361 | E13: 167 | F13: 6 | G13: =E13+D13 -> 528 | H13: =G14+G13 -> 1073 | I13: MČR
B14: Hrubý Petr | C14: SK Žižkov Praha/ SV Grün Weiss Micheldorf | D14: 367 | E14: 178 | F14: 3 | G14: =E14+D14 -> 545 | H14: =H13 -> 1073
A15: 6 | B15: Kabelka Pavel | C15: TJ Centropen Dačice | D15: 368 | E15: 161 | F15: 1 | G15: =E15+D15 -> 529 | H15: =G16+G15 -> 1065 | I15: MČR
B16: Kabelka Milan | C16: TJ Centropen Dačice | D16: 362 | E16: 174 | F16: 2 | G16: =E16+D16 -> 536 | H16: =H15 -> 1065
A17: 7 | B17: Bartoň Jan | C17: TJ Sokol Chotoviny | D17: 359 | E17: 165 | F17: 8 | G17: =E17+D17 -> 524 | H17: =G18+G17 -> 1057 | I17: MČR
B18: Hein Zbyněk | C18: TJ Sokol Chotoviny | D18: 342 | E18: 191 | F18: 4 | G18: =E18+D18 -> 533 | H18: =H17 -> 1057
A19: 8 | B19: Holanec Petr | C19: TJ Lokomotiva Česká Třebová | D19: 380 | E19: 150 | F19: 5 | G19: =E19+D19 -> 530 | H19: =G20+G19 -> 1035 | I19: MČR
B20: Šic Michal | C20: TJ Tesla Pardubice | D20: 358 | E20: 147 | F20: 10 | G20: =E20+D20 -> 505 | H20: =H19 -> 1035
A21: 9 | B21: Šmidlík Petr | C21: TJ Sokol Tehovec | D21: 372 | E21: 149 | F21: 7 | G21: =E21+D21 -> 521 | H21: =G22+G21 -> 1031
B22: Procházka Jaroslav | C22: TJ Sokol Tehovec | D22: 343 | E22: 167 | F22: 7 | G22: =E22+D22 -> 510 | H22: =H21 -> 1031
A23: 10 | B23: Šiška Bedřich | C23: TJ Tesla Pardubice | D23: 352 | E23: 184 | F23: 5 | G23: =E23+D23 -> 536 | H23: =G24+G23 -> 1029 | I23: MČR
B24: Kmoníček Jan | C24: TJ Lokomotiva Česká Třebová | D24: 339 | E24: 154 | F24: 7 | G24: =E24+D24 -> 493 | H24: =H23 -> 1029
A25: 11 | B25: Matějka Vladimír | C25: TJ Sokol Tehovec | D25: 347 | E25: 184 | F25: 5 | G25: =E25+D25 -> 531 | H25: =G26+G25 -> 1027 | I25: MČR
B26: Čožík Tomáš | C26: TJ Sokol Tehovec | D26: 339 | E26: 157 | F26: 6 | G26: =E26+D26 -> 496 | H26: =H25 -> 1027
A27: 12 | B27: Hrubý Petr | C27: SK Žižkov Praha/ SV Grün Weiss Micheldorf | D27: 364 | E27: 176 | F27: 1 | G27: =E27+D27 -> 540 | H27: =G28+G27 -> 1020
B28: Kašpar Jiří | C28: Sokol Kobylisy | D28: 342 | E28: 138 | F28: 13 | G28: =E28+D28 -> 480 | H28: =H27 -> 1020
A29: 13 | B29: Stašák Anton | C29: KK Slavoj Praha | D29: 327 | E29: 186 | F29: 3 | G29: =E29+D29 -> 513 | H29: =G30+G29 -> 1019 | I29: MČR
B30: Bürger Jan | C30: KK Slavia Praha | D30: 358 | E30: 148 | F30: 8 | G30: =E30+D30 -> 506 | H30: =H29 -> 1019
A31: 14 | B31: Šťastný Jiří | C31: TJ Sokol Tehovec | D31: 366 | E31: 139 | F31: 10 | G31: =E31+D31 -> 505 | H31: =G32+G31 -> 1005
B32: Seidl Petr | C32: TJ Sokol Tehovec | D32: 354 | E32: 146 | F32: 13 | G32: =E32+D32 -> 500 | H32: =H31 -> 1005
A33: 15 | B33: Laga Michal | C33: TJ Sokol Machová | D33: 352 | E33: 195 | F33: 5 | G33: =E33+D33 -> 547 | H33: =G34+G33 -> 1000 | I33: MČR
B34: Jurásek Pavel | C34: TJ Jiskra Otrokovice | D34: 342 | E34: 111 | F34: 15 | G34: =E34+D34 -> 453 | H34: =H33 -> 1000
A35: 16 | B35: Zeman Jan | C35: TJ Bižuterie Jablonec nad Nisou | D35: 347 | E35: 158 | F35: 8 | G35: =E35+D35 -> 505 | H35: =G36+G35 -> 994 | I35: MČR
B36: Vincze David | C36: TJ Bižuterie Jablonec nad Nisou | D36: 347 | E36: 142 | F36: 14 | G36: =E36+D36 -> 489 | H36: =H35 -> 994
A37: 17 | B37: Plachý Pavel | C37: SK Meteor Praha | D37: 352 | E37: 130 | F37: 5 | G37: =E37+D37 -> 482 | H37: =G38+G37 -> 983 | I37: MČR
B38: Pleticha Jaroslav | C38: KK Konstruktiva Praha | D38: 343 | E38: 158 | F38: 7 | G38: =E38+D38 -> 501 | H38: =H37 -> 983
A39: 18 | B39: Krákora Vojtěch | C39: AC Sparta Praha | D39: 326 | E39: 149 | F39: 5 | G39: =E39+D39 -> 475 | H39: =G40+G39 -> 978
B40: Klička Václav | C40: AC Sparta Praha | D40: 350 | E40: 153 | F40: 6 | G40: =E40+D40 -> 503 | H40: =H39 -> 978
A41: 19 | B41: Novotný Jiří | C41: SK Meteor Praha | D41: 344 | E41: 153 | F41: 11 | G41: =E41+D41 -> 497 | H41: =G42+G41 -> 970
B42: Plachý Pavel | C42: SK Meteor Praha | D42: 325 | E42: 148 | F42: 8 | G42: =E42+D42 -> 473 | H42: =H41 -> 970
A43: 20 | B43: Vesecký Stanislav | C43: KK Konstruktiva Praha | D43: 342 | E43: 121 | F43: 10 | G43: =E43+D43 -> 463 | H43: =G44+G43 -> 954 | I43: MČR
B44: Šnejdar Miroslav | C44: KK Konstruktiva Praha | D44: 350 | E44: 141 | F44: 8 | G44: =E44+D44 -> 491 | H44: =H43 -> 954
A45: 21 | G45: =E45+D45 -> 0 | H45: =G46+G45 -> 0
G46: =E46+D46 -> 0 | H46: =H45 -> 0
A47: 22 | G47: =E47+D47 -> 0 | H47: =G48+G47 -> 0
G48: =E48+D48 -> 0 | H48: =H47 -> 0
A49: 23 | G49: =E49+D49 -> 0 | H49: =G50+G49 -> 0
G50: =E50+D50 -> 0 | H50: =H49 -> 0
A51: 24 | G51: =E51+D51 -> 0 | H51: =G52+G51 -> 0
G52: =E52+D52 -> 0 | H52: =H51 -> 0
A53: 25 | G53: =E53+D53 -> 0 | H53: =G54+G53 -> 0
G54: =E54+D54 -> 0 | H54: =H53 -> 0
A55: 26 | G55: =E55+D55 -> 0 | H55: =G56+G55 -> 0
G56: =E56+D56 -> 0 | H56: =H55 -> 0
A57: 27 | G57: =E57+D57 -> 0 | H57: =G58+G57 -> 0
G58: =E58+D58 -> 0 | H58: =H57 -> 0
A59: 28 | G59: =E59+D59 -> 0 | H59: =G60+G59 -> 0
G60: =E60+D60 -> 0 | H60: =H59 -> 0
A61: 29 | G61: =E61+D61 -> 0 | H61: =G62+G61 -> 0
G62: =E62+D62 -> 0 | H62: =H61 -> 0
A63: 30 | G63: =E63+D63 -> 0 | H63: =G64+G63 -> 0
G64: =E64+D64 -> 0 | H64: =H63 -> 0
A65: 31 | G65: =E65+D65 -> 0 | H65: =G66+G65 -> 0
G66: =E66+D66 -> 0 | H66: =H65 -> 0
A67: 32 | G67: =E67+D67 -> 0 | H67: =G68+G67 -> 0
G68: =E68+D68 -> 0 | H68: =H67 -> 0
A69: 33 | G69: =E69+D69 -> 0 | H69: =G70+G69 -> 0
G70: =E70+D70 -> 0 | H70: =H69 -> 0
A71: 34 | G71: =E71+D71 -> 0 | H71: =G72+G71 -> 0
G72: =E72+D72 -> 0 | H72: =H71 -> 0
A73: 35 | G73: =E73+D73 -> 0 | H73: =G74+G73 -> 0
G74: =E74+D74 -> 0 | H74: =H73 -> 0
A75: 36 | G75: =E75+D75 -> 0 | H75: =G76+G75 -> 0
G76: =E76+D76 -> 0 | H76: =H75 -> 0
A77: 37 | G77: =E77+D77 -> 0 | H77: =G78+G77 -> 0
G78: =E78+D78 -> 0 | H78: =H77 -> 0
A79: 38 | G79: =E79+D79 -> 0 | H79: =G80+G79 -> 0
G80: =E80+D80 -> 0 | H80: =H79 -> 0
A81: 39 | G81: =E81+D81 -> 0 | H81: =G82+G81 -> 0
G82: =E82+D82 -> 0 | H82: =H81 -> 0
A83: 40 | G83: =E83+D83 -> 0 | H83: =G84+G83 -> 0
G84: =E84+D84 -> 0 | H84: =H83 -> 0
A85: 41 | G85: =E85+D85 -> 0 | H85: =G86+G85 -> 0
G86: =E86+D86 -> 0 | H86: =H85 -> 0
A87: 42 | G87: =E87+D87 -> 0 | H87: =G88+G87 -> 0
G88: =E88+D88 -> 0 | H88: =H87 -> 0
A89: 43 | G89: =E89+D89 -> 0 | H89: =G90+G89 -> 0
G90: =E90+D90 -> 0 | H90: =H89 -> 0
A91: 44 | G91: =E91+D91 -> 0 | H91: =G92+G91 -> 0
G92: =E92+D92 -> 0 | H92: =H91 -> 0
A93: 45 | G93: =E93+D93 -> 0 | H93: =G94+G93 -> 0
G94: =E94+D94 -> 0 | H94: =H93 -> 0
A95: 46 | G95: =E95+D95 -> 0 | H95: =G96+G95 -> 0
G96: =E96+D96 -> 0 | H96: =H95 -> 0
A97: 47 | G97: =E97+D97 -> 0 | H97: =G98+G97 -> 0
G98: =E98+D98 -> 0 | H98: =H97 -> 0
A99: 48 | G99: =E99+D99 -> 0 | H99: =G100+G99 -> 0
G100: =E100+D100 -> 0 | H100: =H99 -> 0
A101: 49 | G101: =E101+D101 -> 0 | H101: =G102+G101 -> 0
G102: =E102+D102 -> 0 | H102: =H101 -> 0
A103: 50 | G103: =E103+D103 -> 0 | H103: =G104+G103 -> 0
G104: =E104+D104 -> 0 | H104: =H103 -> 0
A105: 51 | G105: =E105+D105 -> 0 | H105: =G106+G105 -> 0
G106: =E106+D106 -> 0 | H106: =H105 -> 0

Sheet Ženy dvojice
A1: XII. ročník "O putovní pohár města Benešova 2019"
A2: Průběžné výsledky - dvojice ženy
A4: pořadí | B4: JMÉNO | C4: ODDÍL | D4: P | E4: D | F4: CH | G4: Celk. | H4: CELKEM | I4: Poznámka
A5: 1 | B5: Sailerová Anna | C5: SK Žižkov Praha | D5: 356 | E5: 188 | F5: 2 | G5: =E5+D5 -> 544 | H5: =G6+G5 -> 1048 | I5: MČR
B6: Sedláčková Irini | C6: SK Žižkov Praha | D6: 363 | E6: 141 | F6: 10 | G6: =E6+D6 -> 504 | H6: =H5 -> 1048
A7: 2 | B7: Katzová Kateřina | C7: SK Žižkov Praha | D7: 355 | E7: 155 | F7: 11 | G7: =E7+D7 -> 510 | H7: =G8+G7 -> 1036 | I7: MČR
B8: Mašková Blanka | C8: TJ Sokol Chýnov | D8: 362 | E8: 164 | F8: 6 | G8: =E8+D8 -> 526 | H8: =H7 -> 1036
A9: 3 | B9: Kameníková Aneta | C9: TJ Centropen Dačice | D9: 345 | E9: 151 | F9: 10 | G9: =E9+D9 -> 496 | H9: =G10+G9 -> 993 | I9: MČR
B10: Kabelková Iveta | C10: TJ Centropen Dačice | D10: 342 | E10: 155 | F10: 5 | G10: =E10+D10 -> 497 | H10: =H9 -> 993
A11: 4 | B11: Ambrová Kateřina | C11: TJ Sokol Duchcov | D11: 334 | E11: 141 | F11: 12 | G11: =E11+D11 -> 475 | H11: =G12+G11 -> 992 | I11: MČR
B12: Ambrová Barbora | C12: TJ Sokol Duchcov | D12: 356 | E12: 161 | F12: 9 | G12: =E12+D12 -> 517 | H12: =H11 -> 992
A13: 5 | B13: Dejdová Zdeňka | C13: KK Jiří Poděbrady | D13: 329 | E13: 145 | F13: 6 | G13: =E13+D13 -> 474 | H13: =G14+G13 -> 991 | I13: MČR
B14: Kotorová Dita | C14: TJ Sokol Benešov | D14: 353 | E14: 164 | F14: 11 | G14: =E14+D14 -> 517 | H14: =H13 -> 991
A15: 6 | B15: Sýkorová Šárka | C15: SK Škoda VS Plzeň | D15: 328 | E15: 137 | F15: 9 | G15: =E15+D15 -> 465 | H15: =G16+G15 -> 986 | I15: MČR
B16: Zíková Ivana | C16: SK Škoda VS Plzeň | D16: 349 | E16: 172 | F16: 8 | G16: =E16+D16 -> 521 | H16: =H15 -> 986
A17: 7 | B17: Somolíková Emilie | C17: KK Velké Popovice | D17: 356 | E17: 130 | F17: 8 | G17: =E17+D17 -> 486 | H17: =G18+G17 -> 979 | I17: MČR
B18: Václavková Eva | C18: KK Velké Popovice | D18: 309 | E18: 184 | F18: 6 | G18: =E18+D18 -> 493 | H18: =H17 -> 979
A19: 8 | B19: Radová Leona | C19: TJ VTŽ Chomutov | D19: 292 | E19: 109 | F19: 21 | G19: =E19+D19 -> 401 | H19: =G20+G19 -> 881
B20: Šuterová Nela | C20: SKK Podbořany | D20: 320 | E20: 160 | F20: 2 | G20: =E20+D20 -> 480 | H20: =H19 -> 881
A21: 9 | B21: Šedivcová Jitka | C21: TJ Sokol Chýnov | D21: 256 | E21: 93 | F21: 29 | G21: =E21+D21 -> 349 | H21: =G22+G21 -> 804 | I21: MČR
B22: Roubková Blanka | C22: TJ Sokol Chýnov | D22: 318 | E22: 137 | F22: 11 | G22: =E22+D22 -> 455 | H22: =H21 -> 804
A23: 10 | G23: =E23+D23 -> 0 | H23: =G24+G23 -> 0
G24: =E24+D24 -> 0 | H24: =H23 -> 0
A25: 11 | G25: =E25+D25 -> 0 | H25: =G26+G25 -> 0
G26: =E26+D26 -> 0 | H26: =H25 -> 0
A27: 12 | G27: =E27+D27 -> 0 | H27: =G28+G27 -> 0
G28: =E28+D28 -> 0 | H28: =H27 -> 0
A29: 13 | G29: =E29+D29 -> 0 | H29: =G30+G29 -> 0
G30: =E30+D30 -> 0 | H30: =H29 -> 0
A31: 14 | G31: =E31+D31 -> 0 | H31: =G32+G31 -> 0
G32: =E32+D32 -> 0 | H32: =H31 -> 0
A33: 15 | G33: =E33+D33 -> 0 | H33: =G34+G33 -> 0
G34: =E34+D34 -> 0 | H34: =H33 -> 0
A35: 16 | G35: =E35+D35 -> 0 | H35: =G36+G35 -> 0
G36: =E36+D36 -> 0 | H36: =H35 -> 0
A37: 17 | G37: =E37+D37 -> 0 | H37: =G38+G37 -> 0
G38: =E38+D38 -> 0 | H38: =H37 -> 0
A39: 18 | G39: =E39+D39 -> 0 | H39: =G40+G39 -> 0
G40: =E40+D40 -> 0 | H40: =H39 -> 0
A41: 19 | G41: =E41+D41 -> 0 | H41: =G42+G41 -> 0
G42: =E42+D42 -> 0 | H42: =H41 -> 0
A43: 20 | G43: =E43+D43 -> 0 | H43: =G44+G43 -> 0
G44: =E44+D44 -> 0 | H44: =H43 -> 0
A45: 21 | G45: =E45+D45 -> 0 | H45: =G46+G45 -> 0
G46: =E46+D46 -> 0 | H46: =H45 -> 0
A47: 22 | G47: =E47+D47 -> 0 | H47: =G48+G47 -> 0
G48: =E48+D48 -> 0 | H48: =H47 -> 0
A49: 23 | G49: =E49+D49 -> 0 | H49: =G50+G49 -> 0
G50: =E50+D50 -> 0 | H50: =H49 -> 0
A51: 24 | G51: =E51+D51 -> 0 | H51: =G52+G51 -> 0
G52: =E52+D52 -> 0 | H52: =H51 -> 0
A53: 25 | G53: =E53+D53 -> 0 | H53: =G54+G53 -> 0
G54: =E54+D54 -> 0 | H54: =H53 -> 0
A55: 26 | G55: =E55+D55 -> 0 | H55: =G56+G55 -> 0
G56: =E56+D56 -> 0 | H56: =H55 -> 0
A57: 27 | G57: =E57+D57 -> 0 | H57: =G58+G57 -> 0
G58: =E58+D58 -> 0 | H58: =H57 -> 0
A59: 28 | G59: =E59+D59 -> 0 | H59: =G60+G59 -> 0
G60: =E60+D60 -> 0 | H60: =H59 -> 0
A61: 29 | G61: =E61+D61 -> 0 | H61: =G62+G61 -> 0
G62: =E62+D62 -> 0 | H62: =H61 -> 0
A63: 30 | G63: =E63+D63 -> 0 | H63: =G64+G63 -> 0
G64: =E64+D64 -> 0 | H64: =H63 -> 0
A65: 31 | G65: =E65+D65 -> 0 | H65: =G66+G65 -> 0
G66: =E66+D66 -> 0 | H66: =H65 -> 0
A67: 32 | G67: =E67+D67 -> 0 | H67: =G68+G67 -> 0
G68: =E68+D68 -> 0 | H68: =H67 -> 0
A69: 33 | G69: =E69+D69 -> 0 | H69: =G70+G69 -> 0
G70: =E70+D70 -> 0 | H70: =H69 -> 0
A71: 34 | G71: =E71+D71 -> 0 | H71: =G72+G71 -> 0
G72: =E72+D72 -> 0 | H72: =H71 -> 0
A73: 35 | G73: =E73+D73 -> 0 | H73: =G74+G73 -> 0
G74: =E74+D74 -> 0 | H74: =H73 -> 0
A75: 36 | G75: =E75+D75 -> 0 | H75: =G76+G75 -> 0
G76: =E76+D76 -> 0 | H76: =H75 -> 0
A77: 37 | G77: =E77+D77 -> 0 | H77: =G78+G77 -> 0
G78: =E78+D78 -> 0 | H78: =H77 -> 0
A79: 38 | G79: =E79+D79 -> 0 | H79: =G80+G79 -> 0
G80: =E80+D80 -> 0 | H80: =H79 -> 0
A81: 39 | G81: =E81+D81 -> 0 | H81: =G82+G81 -> 0
G82: =E82+D82 -> 0 | H82: =H81 -> 0
A83: 40 | G83: =E83+D83 -> 0 | H83: =G84+G83 -> 0
G84: =E84+D84 -> 0 | H84: =H83 -> 0
A85: 41 | G85: =E85+D85 -> 0 | H85: =G86+G85 -> 0
G86: =E86+D86 -> 0 | H86: =H85 -> 0
A87: 42 | G87: =E87+D87 -> 0 | H87: =G88+G87 -> 0
G88: =E88+D88 -> 0 | H88: =H87 -> 0
A89: 43 | G89: =E89+D89 -> 0 | H89: =G90+G89 -> 0
G90: =E90+D90 -> 0 | H90: =H89 -> 0
A91: 44 | G91: =E91+D91 -> 0 | H91: =G92+G91 -> 0
G92: =E92+D92 -> 0 | H92: =H91 -> 0
A93: 45 | G93: =E93+D93 -> 0 | H93: =G94+G93 -> 0
G94: =E94+D94 -> 0 | H94: =H93 -> 0
A95: 46 | G95: =E95+D95 -> 0 | H95: =G96+G95 -> 0
G96: =E96+D96 -> 0 | H96: =H95 -> 0
A97: 47 | G97: =E97+D97 -> 0 | H97: =G98+G97 -> 0
G98: =E98+D98 -> 0 | H98: =H97 -> 0
A99: 48 | G99: =E99+D99 -> 0 | H99: =G100+G99 -> 0
G100: =E100+D100 -> 0 | H100: =H99 -> 0
A101: 49 | G101: =E101+D101 -> 0 | H101: =G102+G101 -> 0
G102: =E102+D102 -> 0 | H102: =H101 -> 0
A103: 50 | G103: =E103+D103 -> 0 | H103: =G104+G103 -> 0
G104: =E104+D104 -> 0 | H104: =H103 -> 0
A105: 51 | G105: =E105+D105 -> 0 | H105: =G106+G105 -> 0
G106: =E106+D106 -> 0 | H106: =H105 -> 0

Sheet Ženy Jednotlivě (hidden)
A1: Pohár města Benešova 2014-2015
A2: Průběžné výsledky dvojic žen k
A4: pořadí | B4: JMÉNO | C4: ODDÍL | D4: P | E4: D | F4: CH | G4: Celk. | I4: Kategorie
A5: 1 | G5: =E5+D5 -> 0 | I5: Muži | J5: Muži
A6: 2 | G6: 0 | I6: Muži | J6: Muži
A7: 3 | G7: 0
A8: 4 | G8: 0
A9: 5 | G9: 0 | I9: Muži | J9: Muži | K9: =MAX(D:D) -> 0 | L9: =MAX(E:E) -> 0
A10: 6 | G10: 0
A11: 7 | G11: 0
A12: 8 | G12: 0 | I12: Muži | J12: Muži
A13: 9 | G13: 0
A14: 10 | G14: 0
A15: 11 | G15: 0
A16: 12 | G16: 0
A17: 13 | G17: 0
A18: 14 | G18: 0
A19: 15 | G19: 0
A20: 16 | G20: 0
A21: 17 | G21: 0
A22: 18 | G22: 0
A23: 19 | G23: 0
A24: 20 | G24: 0
A25: 21 | G25: 0
A26: 22 | G26: 0
A27: 23 | G27: 0
A28: 24 | G28: 0
A29: 25 | G29: 0
A30: 26 | G30: 0
A31: 27 | G31: 0
A32: 28 | G32: 0
A33: 29 | G33: 0
A34: 30 | G34: 0
A35: 31 | G35: 0
A36: 32 | G36: 0
A37: 33 | G37: =E37+D37 -> 0
A38: 34 | G38: 0
A39: 35 | G39: 0
A40: 36 | G40: 0
A41: 37 | G41: 0
A42: 38 | G42: 0
A43: 39 | G43: 0
A44: 40 | G44: 0
A45: 41 | G45: 0
A46: 42 | G46: 0
A47: 43 | G47: 0
A48: 44 | G48: 0
A49: 45 | G49: 0
A50: 46 | G50: 0
A51: 47 | G51: 0
A52: 48 | G52: 0
A53: 49 | G53: 0
A54: 50 | G54: 0
A55: 51 | G55: 0
A56: 52 | G56: 0
A57: 53 | G57: 0
A58: 54 | G58: 0
A59: 55 | G59: 0
A60: 56 | G60: 0
A61: 57 | G61: 0
A62: 58 | G62: 0
A63: 59 | G63: 0
A64: 60 | G64: 0
A65: 61 | G65: 0
A66: 62 | G66: 0
A67: 63 | G67: 0
A68: 64 | G68: 0
A69: 65 | G69: 0
A70: 66 | G70: 0
A71: 67 | G71: 0
A72: 68 | G72: 0
A73: 69 | G73: =E73+D73 -> 0
A74: 70 | G74: 0
A75: 71 | G75: 0
G76: 0
G77: 0
G78: 0
G79: 0
G80: 0
G81: 0
G82: 0
G83: 0
G84: 0
G85: 0
G86: 0
G87: 0
G88: 0
G89: 0
G90: 0
G91: 0
G92: 0
G93: 0
G94: 0
G95: 0
G96: 0
G97: 0
G98: 0
G99: 0
G100: 0
G101: =E101+D101 -> 0
G102: 0
G103: 0
G104: 0
G105: 0
G106: 0
G107: 0

Sheet Smíšené dvojice
A1: XII. ročník "O putovní pohár města Benešova 2019"
A2: Průběžné výsledky - smíšené dvojice
A4: pořadí | B4: JMÉNO | C4: ODDÍL | D4: P | E4: D | F4: CH | G4: Celk. | H4: CELKEM | I4: Pozn.
A5: 1 | B5: Hažva Jaroslav | C5: KK Slavoj Praha | D5: 389 | E5: 211 | F5: 0 | G5: =E5+D5 -> 600 | H5: =G6+G5 -> 1124 | I5: MČR | J5: =MAX(D:D) -> 396 | K5: =MAX(E:E) -> 217
B6: Mašková Blanka | C6: TJ Sokol Chýnov | D6: 378 | E6: 146 | F6: 3 | G6: =E6+D6 -> 524 | H6: =H5 -> 1124
A7: 2 | B7: Endršt Jan | C7: SKK Rokycany | D7: 353 | E7: 217 | F7: 3 | G7: =E7+D7 -> 570 | H7: =G8+G7 -> 1070 | I7: MČR
B8: Horková Veronika | C8: SKK Rokycany | D8: 342 | E8: 158 | F8: 5 | G8: =E8+D8 -> 500 | H8: =H7 -> 1070
A9: 3 | B9: Posejpal Václav | C9: KK Konstruktiva Praha | D9: 365 | E9: 193 | F9: 5 | G9: =E9+D9 -> 558 | H9: =G10+G9 -> 1066 | I9: MČR
B10: Chlumská Marie | C10: KK Konstruktiva Praha | D10: 340 | E10: 168 | F10: 5 | G10: =E10+D10 -> 508 | H10: =H9 -> 1066
A11: 4 | B11: Kortan Martin | C11: TJ Jiskra Nový Bor | D11: 348 | E11: 172 | F11: 1 | G11: =E11+D11 -> 520 | H11: =G12+G11 -> 1038 | I11: MČR
B12: Dunková Alena | C12: TJ Jiskra Nový Bor | D12: 340 | E12: 178 | F12: 3 | G12: =E12+D12 -> 518 | H12: =H11 -> 1038
A13: 5 | B13: Kašpar Jiří | C13: Sokol Kobylisy | D13: 347 | E13: 156 | F13: 6 | G13: =E13+D13 -> 503 | H13: =G14+G13 -> 1008 | I13: MČR
B14: Sedláčková Irini | C14: SK Žižkov Praha | D14: 356 | E14: 149 | F14: 5 | G14: =E14+D14 -> 505 | H14: =H13 -> 1008
A15: 6 | B15: Březina Stanislav | C15: KK Slavoj Praha | D15: 333 | E15: 154 | F15: 8 | G15: =E15+D15 -> 487 | H15: =G16+G15 -> 997 | I15: MČR
B16: Mizerová Blanka | C16: KK Slavia Praha | D16: 342 | E16: 168 | F16: 5 | G16: =E16+D16 -> 510 | H16: =H15 -> 997
A17: 7 | B17: Zahrádka Ladislav | C17: SK Meteor Praha | D17: 376 | E17: 170 | F17: 7 | G17: =E17+D17 -> 546 | H17: =G18+G17 -> 993 | I17: MČR
B18: Vlková Ivana | C18: SK Meteor Praha | D18: 310 | E18: 137 | F18: 11 | G18: =E18+D18 -> 447 | H18: =H17 -> 993
A19: 8 | B19: Svoboda Milan | C19: TJ Sokol Kdyně/SKK Raindorf | D19: 396 | E19: 192 | F19: 1 | G19: =E19+D19 -> 588 | H19: =G20+G19 -> 992 | I19: MČR
B20: Kotalová Eva | C20: TJ Sokol Kdyně | D20: 306 | E20: 98 | F20: 34 | G20: =E20+D20 -> 404 | H20: =H19 -> 992
A21: 9 | B21: Pleticha Jaroslav | C21: KK Konstruktiva Praha | D21: 351 | E21: 164 | F21: 4 | G21: =E21+D21 -> 515 | H21: =G22+G21 -> 989 | I21: MČR
B22: Školová Dana | C22: SK Uhelné sklady | D22: 329 | E22: 145 | F22: 8 | G22: =E22+D22 -> 474 | H22: =H21 -> 989
A23: 10 | B23: Chlumská Tereza | C23: KK Konstruktiva Praha | D23: 326 | E23: 179 | F23: 4 | G23: =E23+D23 -> 505 | H23: =G24+G23 -> 986 | I23: MČR
B24: Chlumský Vlastimil | C24: KK Konstruktiva Praha | D24: 334 | E24: 147 | F24: 7 | G24: =E24+D24 -> 481 | H24: =H23 -> 986
A25: 11 | B25: Kohlíček Petr | C25: TJ Jiskra Nový Bor | D25: 367 | E25: 128 | F25: 9 | G25: =E25+D25 -> 495 | H25: =G26+G25 -> 974 | I25: MČR
B26: Kohlíčková Lenka | C26: TJ Jiskra Nový Bor | D26: 328 | E26: 151 | F26: 7 | G26: =E26+D26 -> 479 | H26: =H25 -> 974
A27: 12 | B27: Zeman Tadeáš | C27: SKK Podbořany | D27: 331 | E27: 144 | F27: 13 | G27: =E27+D27 -> 475 | H27: =G28+G27 -> 972
B28: Šuterová Michaela | C28: SKK Podbořany | D28: 336 | E28: 161 | F28: 10 | G28: =E28+D28 -> 497 | H28: =H27 -> 972
A29: 13 | B29: Novotný Jiří | C29: SK Meteor Praha | D29: 364 | E29: 134 | F29: 16 | G29: =E29+D29 -> 498 | H29: =G30+G29 -> 963
B30: Školová Dana | C30: SK Uhelné sklady | D30: 349 | E30: 116 | F30: 11 | G30: =E30+D30 -> 465 | H30: =H29 -> 963
A31: 14 | B31: Rada Stanislav | C31: TJ VTŽ Chomutov | D31: 369 | E31: 160 | F31: 3 | G31: =E31+D31 -> 529 | H31: =G32+G31 -> 961 | I31: MČR
B32: Radová Monika | C32: TJ VTŽ Chomutov | D32: 324 | E32: 108 | F32: 15 | G32: =E32+D32 -> 432 | H32: =H31 -> 961
A33: 15 | B33: Rusín František | C33: KK Slavoj Praha | D33: 342 | E33: 163 | F33: 3 | G33: =E33+D33 -> 505 | H33: =G34+G33 -> 958 | I33: MČR
B34: Holanová Kateřina | C34: KK Slavoj Praha | D34: 315 | E34: 138 | F34: 7 | G34: =E34+D34 -> 453 | H34: =H33 -> 958
A35: 16 | B35: Hrubý Petr | C35: SK Žižkov Praha/ SV Grün Weiss Micheldorf | D35: 334 | E35: 166 | F35: 6 | G35: =E35+D35 -> 500 | H35: =G36+G35 -> 949 | I35: MČR
B36: Sailerová Anna | C36: SK Žižkov Praha | D36: 318 | E36: 131 | F36: 13 | G36: =E36+D36 -> 449 | H36: =H35 -> 949
A37: 17 | B37: Křemen Petr | C37: TJ Sokol Chotoviny | D37: 327 | E37: 148 | F37: 10 | G37: =E37+D37 -> 475 | H37: =G38+G37 -> 924 | I37: MČR
B38: Makovcová Alena | C38: TJ Sokol Chotoviny | D38: 330 | E38: 119 | F38: 13 | G38: =E38+D38 -> 449 | H38: =H37 -> 924
A39: 18 | H39: =G40+G39 -> 0
H40: =H39 -> 0
A41: 19 | G41: =E41+D41 -> 0 | H41: =G42+G41 -> 0
G42: =E42+D42 -> 0 | H42: =H41 -> 0
A43: 20 | G43: =E43+D43 -> 0 | H43: =G44+G43 -> 0
G44: =E44+D44 -> 0 | H44: =H43 -> 0
A45: 21 | G45: =E45+D45 -> 0 | H45: =G46+G45 -> 0
G46: =E46+D46 -> 0 | H46: =H45 -> 0
A47: 22 | G47: =E47+D47 -> 0 | H47: =G48+G47 -> 0
G48: =E48+D48 -> 0 | H48: =H47 -> 0
A49: 23 | G49: =E49+D49 -> 0 | H49: =G50+G49 -> 0
G50: =E50+D50 -> 0 | H50: =H49 -> 0
A51: 24 | G51: =E51+D51 -> 0 | H51: =G52+G51 -> 0
G52: =E52+D52 -> 0 | H52: =H51 -> 0
A53: 25 | G53: =E53+D53 -> 0 | H53: =G54+G53 -> 0
G54: =E54+D54 -> 0 | H54: =H53 -> 0
A55: 26 | G55: =E55+D55 -> 0 | H55: =G56+G55 -> 0
G56: =E56+D56 -> 0 | H56: =H55 -> 0
A57: 27 | G57: =E57+D57 -> 0 | H57: =G58+G57 -> 0
G58: =E58+D58 -> 0 | H58: =H57 -> 0
A59: 28 | G59: =E59+D59 -> 0 | H59: =G60+G59 -> 0
G60: =E60+D60 -> 0 | H60: =H59 -> 0
A61: 29 | G61: =E61+D61 -> 0 | H61: =G62+G61 -> 0
G62: =E62+D62 -> 0 | H62: =H61 -> 0
A63: 30 | G63: =E63+D63 -> 0 | H63: =G64+G63 -> 0
G64: =E64+D64 -> 0 | H64: =H63 -> 0
A65: 31 | G65: =E65+D65 -> 0 | H65: =G66+G65 -> 0
G66: =E66+D66 -> 0 | H66: =H65 -> 0
A67: 32 | G67: =E67+D67 -> 0 | H67: =G68+G67 -> 0
G68: =E68+D68 -> 0 | H68: =H67 -> 0
A69: 33 | G69: =E69+D69 -> 0 | H69: =G70+G69 -> 0
G70: =E70+D70 -> 0 | H70: =H69 -> 0
A71: 34 | G71: =E71+D71 -> 0 | H71: =G72+G71 -> 0
G72: =E72+D72 -> 0 | H72: =H71 -> 0
A73: 35 | G73: =E73+D73 -> 0 | H73: =G74+G73 -> 0
G74: =E74+D74 -> 0 | H74: =H73 -> 0
A75: 36 | G75: =E75+D75 -> 0 | H75: =G76+G75 -> 0
G76: =E76+D76 -> 0 | H76: =H75 -> 0
A77: 37 | G77: =E77+D77 -> 0 | H77: =G78+G77 -> 0
G78: =E78+D78 -> 0 | H78: =H77 -> 0
A79: 38 | G79: =E79+D79 -> 0 | H79: =G80+G79 -> 0
G80: =E80+D80 -> 0 | H80: =H79 -> 0
A81: 39 | G81: =E81+D81 -> 0 | H81: =G82+G81 -> 0
G82: =E82+D82 -> 0 | H82: =H81 -> 0
A83: 40 | G83: =E83+D83 -> 0 | H83: =G84+G83 -> 0
G84: =E84+D84 -> 0 | H84: =H83 -> 0
A85: 41 | G85: =E85+D85 -> 0 | H85: =G86+G85 -> 0
G86: =E86+D86 -> 0 | H86: =H85 -> 0
A87: 42 | G87: =E87+D87 -> 0 | H87: =G88+G87 -> 0
G88: =E88+D88 -> 0 | H88: =H87 -> 0
A89: 43 | G89: =E89+D89 -> 0 | H89: =G90+G89 -> 0
G90: =E90+D90 -> 0 | H90: =H89 -> 0
A91: 44 | G91: =E91+D91 -> 0 | H91: =G92+G91 -> 0
G92: =E92+D92 -> 0 | H92: =H91 -> 0
A93: 45 | G93: =E93+D93 -> 0 | H93: =G94+G93 -> 0
G94: =E94+D94 -> 0 | H94: =H93 -> 0
A95: 46 | G95: =E95+D95 -> 0 | H95: =G96+G95 -> 0
G96: =E96+D96 -> 0 | H96: =H95 -> 0
A97: 47 | G97: =E97+D97 -> 0 | H97: =G98+G97 -> 0
G98: =E98+D98 -> 0 | H98: =H97 -> 0
A99: 48 | G99: =E99+D99 -> 0 | H99: =G100+G99 -> 0
G100: =E100+D100 -> 0 | H100: =H99 -> 0
A101: 49 | G101: =E101+D101 -> 0 | H101: =G102+G101 -> 0
G102: =E102+D102 -> 0 | H102: =H101 -> 0
A103: 50 | G103: =E103+D103 -> 0 | H103: =G104+G103 -> 0
G104: =E104+D104 -> 0 | H104: =H103 -> 0
A105: 51 | G105: =E105+D105 -> 0 | H105: =G106+G105 -> 0
G106: =E106+D106 -> 0 | H106: =H105 -> 0

Sheet Jednotlivci
A1: XII. ročník "O putovní pohár města Benešova 2019"
A2: Průběžné výsledky - jednotlivci
A4: pořadí | B4: JMÉNO | C4: ODDÍL | D4: P | E4: D | F4: CH | G4: Celk. | I4: Kategorie
A5: 1 | B5: Hažva Jaroslav | C5: KK Slavoj Praha | D5: 389 | E5: 211 | F5: 0 | G5: =E5+D5 -> 600 | I5: Muži | J5: Muži
A6: 2 | B6: Kočí Lukáš | C6: TJ Sokol Benešov | D6: 380 | E6: 211 | F6: 2 | G6: =E6+D6 -> 591 | I6: Muži | J6: Muži
A7: 3 | B7: Svoboda Milan | C7: TJ Sokol Kdyně/SKK Raindorf | D7: 396 | E7: 192 | F7: 1 | G7: =E7+D7 -> 588
A8: 4 | B8: Neumann Daniel | C8: SKK Rokycany | D8: 390 | E8: 181 | F8: 1 | G8: =E8+D8 -> 571
A9: 5 | B9: Endršt Jan | C9: SKK Rokycany | D9: 390 | E9: 180 | F9: 3 | G9: =E9+D9 -> 570 | I9: Muži | J9: Muži | K9: =MAX(D:D) -> 396 | L9: =MAX(E:E) -> 217
A10: 6 | B10: Endršt Jan | C10: SKK Rokycany | D10: 353 | E10: 217 | F10: 3 | G10: =E10+D10 -> 570
A11: 7 | B11: Endršt Jan | C11: SKK Rokycany | D11: 384 | E11: 180 | F11: 4 | G11: =E11+D11 -> 564
A12: 8 | B12: Vymazal Pavel | C12: KK Konstruktiva Praha | D12: 355 | E12: 209 | F12: 4 | G12: =E12+D12 -> 564 | I12: Muži | J12: Muži
A13: 9 | B13: Svoboda Tomáš | C13: TJ Sokol Benešov | D13: 366 | E13: 193 | F13: 5 | G13: =E13+D13 -> 559
A14: 10 | B14: Posejpal Václav | C14: KK Konstruktiva Praha | D14: 365 | E14: 193 | F14: 5 | G14: =E14+D14 -> 558
A15: 11 | B15: Zahrádka Zdeněk | C15: KK Konstruktiva Praha | D15: 369 | E15: 179 | F15: 3 | G15: =E15+D15 -> 548
A16: 12 | B16: Laga Michal | C16: TJ Sokol Machová | D16: 352 | E16: 195 | F16: 5 | G16: =E16+D16 -> 547
A17: 13 | B17: Zahrádka Ladislav | C17: SK Meteor Praha | D17: 376 | E17: 170 | F17: 7 | G17: =E17+D17 -> 546
A18: 14 | B18: Hrubý Petr | C18: SK Žižkov Praha/ SV Grün Weiss Micheldorf | D18: 367 | E18: 178 | F18: 3 | G18: =E18+D18 -> 545
A19: 15 | B19: Sailerová Anna | C19: SK Žižkov Praha | D19: 356 | E19: 188 | F19: 2 | G19: =E19+D19 -> 544
A20: 16 | B20: Hrubý Petr | C20: SK Žižkov Praha/ SV Grün Weiss Micheldorf | D20: 364 | E20: 176 | F20: 1 | G20: =E20+D20 -> 540
A21: 17 | B21: Šiška Bedřich | C21: TJ Tesla Pardubice | D21: 352 | E21: 184 | F21: 5 | G21: =E21+D21 -> 536
A22: 18 | B22: Kabelka Milan | C22: TJ Centropen Dačice | D22: 362 | E22: 174 | F22: 2 | G22: =E22+D22 -> 536
A23: 19 | B23: Hein Zbyněk | C23: TJ Sokol Chotoviny | D23: 342 | E23: 191 | F23: 4 | G23: =E23+D23 -> 533
A24: 20 | B24: Matějka Vladimír | C24: TJ Sokol Tehovec | D24: 347 | E24: 184 | F24: 5 | G24: =E24+D24 -> 531
A25: 21 | B25: Holanec Petr | C25: TJ Lokomotiva Česká Třebová | D25: 380 | E25: 150 | F25: 5 | G25: =E25+D25 -> 530
A26: 22 | B26: Rada Stanislav | C26: TJ VTŽ Chomutov | D26: 369 | E26: 160 | F26: 3 | G26: =E26+D26 -> 529
A27: 23 | B27: Kabelka Pavel | C27: TJ Centropen Dačice | D27: 368 | E27: 161 | F27: 1 | G27: =E27+D27 -> 529
A28: 24 | B28: Rada Stanislav | C28: SKK Rokycany | D28: 363 | E28: 165 | F28: 7 | G28: =E28+D28 -> 528
A29: 25 | B29: Rusín František | C29: KK Slavoj Praha | D29: 361 | E29: 167 | F29: 6 | G29: =E29+D29 -> 528
A30: 26 | B30: Mašková Blanka | C30: TJ Sokol Chýnov | D30: 362 | E30: 164 | F30: 6 | G30: =E30+D30 -> 526
A31: 27 | B31: Bartoň Jan | C31: TJ Sokol Chotoviny | D31: 359 | E31: 165 | F31: 8 | G31: =E31+D31 -> 524
A32: 28 | B32: Mašková Blanka | C32: TJ Sokol Chýnov | D32: 378 | E32: 146 | F32: 3 | G32: =E32+D32 -> 524
A33: 29 | B33: Zíková Ivana | C33: SK Škoda VS Plzeň | D33: 349 | E33: 172 | F33: 8 | G33: =E33+D33 -> 521
A34: 30 | B34: Šmidlík Petr | C34: TJ Sokol Tehovec | D34: 372 | E34: 149 | F34: 7 | G34: =E34+D34 -> 521
A35: 31 | B35: Kortan Martin | C35: TJ Jiskra Nový Bor | D35: 348 | E35: 172 | F35: 1 | G35: =E35+D35 -> 520
A36: 32 | B36: Dunková Alena | C36: TJ Jiskra Nový Bor | D36: 340 | E36: 178 | F36: 3 | G36: =E36+D36 -> 518
A37: 33 | B37: Kotorová Dita | C37: TJ Sokol Benešov | D37: 353 | E37: 164 | F37: 11 | G37: =E37+D37 -> 517
A38: 34 | B38: Ambrová Barbora | C38: TJ Sokol Duchcov | D38: 356 | E38: 161 | F38: 9 | G38: =E38+D38 -> 517
A39: 35 | B39: Pleticha Jaroslav | C39: KK Konstruktiva Praha | D39: 351 | E39: 164 | F39: 4 | G39: =E39+D39 -> 515
A40: 36 | B40: Stašák Anton | C40: KK Slavoj Praha | D40: 327 | E40: 186 | F40: 3 | G40: =E40+D40 -> 513
A41: 37 | B41: Katzová Kateřina | C41: SK Žižkov Praha | D41: 355 | E41: 155 | F41: 11 | G41: =E41+D41 -> 510
A42: 38 | B42: Procházka Jaroslav | C42: TJ Sokol Tehovec | D42: 343 | E42: 167 | F42: 7 | G42: =E42+D42 -> 510
A43: 39 | B43: Mizerová Blanka | C43: KK Slavia Praha | D43: 342 | E43: 168 | F43: 5 | G43: =E43+D43 -> 510
A44: 40 | B44: Chlumská Marie | C44: KK Konstruktiva Praha | D44: 340 | E44: 168 | F44: 5 | G44: =E44+D44 -> 508
A45: 41 | B45: Bürger Jan | C45: KK Slavia Praha | D45: 358 | E45: 148 | F45: 8 | G45: =E45+D45 -> 506
A46: 42 | B46: Šťastný Jiří | C46: TJ Sokol Tehovec | D46: 366 | E46: 139 | F46: 10 | G46: =E46+D46 -> 505
A47: 43 | B47: Šic Michal | C47: TJ Tesla Pardubice | D47: 358 | E47: 147 | F47: 10 | G47: =E47+D47 -> 505
A48: 44 | B48: Zeman Jan | C48: TJ Bižuterie Jablonec nad Nisou | D48: 347 | E48: 158 | F48: 8 | G48: =E48+D48 -> 505
A49: 45 | B49: Sedláčková Irini | C49: SK Žižkov Praha | D49: 356 | E49: 149 | F49: 5 | G49: =E49+D49 -> 505
A50: 46 | B50: Chlumská Tereza | C50: KK Konstruktiva Praha | D50: 326 | E50: 179 | F50: 4 | G50: =E50+D50 -> 505
A51: 47 | B51: Rusín František | C51: KK Slavoj Praha | D51: 342 | E51: 163 | F51: 3 | G51: =E51+D51 -> 505
A52: 48 | B52: Sedláčková Irini | C52: SK Žižkov Praha | D52: 363 | E52: 141 | F52: 10 | G52: =E52+D52 -> 504
A53: 49 | B53: Klička Václav | C53: AC Sparta Praha | D53: 350 | E53: 153 | F53: 6 | G53: =E53+D53 -> 503
A54: 50 | B54: Kašpar Jiří | C54: Sokol Kobylisy | D54: 347 | E54: 156 | F54: 6 | G54: =E54+D54 -> 503
A55: 51 | B55: Pleticha Jaroslav | C55: KK Konstruktiva Praha | D55: 343 | E55: 158 | F55: 7 | G55: =E55+D55 -> 501
A56: 52 | B56: Seidl Petr | C56: TJ Sokol Tehovec | D56: 354 | E56: 146 | F56: 13 | G56: =E56+D56 -> 500
A57: 53 | B57: Hrubý Petr | C57: SK Žižkov Praha/ SV Grün Weiss Micheldorf | D57: 334 | E57: 166 | F57: 6 | G57: =E57+D57 -> 500
A58: 54 | B58: Horková Veronika | C58: SKK Rokycany | D58: 342 | E58: 158 | F58: 5 | G58: =E58+D58 -> 500
A59: 55 | B59: Novotný Jiří | C59: SK Meteor Praha | D59: 364 | E59: 134 | F59: 16 | G59: =E59+D59 -> 498
A60: 56 | B60: Novotný Jiří | C60: SK Meteor Praha | D60: 344 | E60: 153 | F60: 11 | G60: =E60+D60 -> 497
A61: 57 | B61: Šuterová Michaela | C61: SKK Podbořany | D61: 336 | E61: 161 | F61: 10 | G61: =E61+D61 -> 497
A62: 58 | B62: Kabelková Iveta | C62: TJ Centropen Dačice | D62: 342 | E62: 155 | F62: 5 | G62: =E62+D62 -> 497
A63: 59 | B63: Kameníková Aneta | C63: TJ Centropen Dačice | D63: 345 | E63: 151 | F63: 10 | G63: =E63+D63 -> 496
A64: 60 | B64: Čožík Tomáš | C64: TJ Sokol Tehovec | D64: 339 | E64: 157 | F64: 6 | G64: =E64+D64 -> 496
A65: 61 | B65: Kohlíček Petr | C65: TJ Jiskra Nový Bor | D65: 367 | E65: 128 | F65: 9 | G65: =E65+D65 -> 495
A66: 62 | B66: Kmoníček Jan | C66: TJ Lokomotiva Česká Třebová | D66: 339 | E66: 154 | F66: 7 | G66: =E66+D66 -> 493
A67: 63 | B67: Václavková Eva | C67: KK Velké Popovice | D67: 309 | E67: 184 | F67: 6 | G67: =E67+D67 -> 493
A68: 64 | B68: Šnejdar Miroslav | C68: KK Konstruktiva Praha | D68: 350 | E68: 141 | F68: 8 | G68: =E68+D68 -> 491
A69: 65 | B69: Vincze David | C69: TJ Bižuterie Jablonec nad Nisou | D69: 347 | E69: 142 | F69: 14 | G69: =E69+D69 -> 489
A70: 66 | B70: Březina Stanislav | C70: KK Slavoj Praha | D70: 333 | E70: 154 | F70: 8 | G70: =E70+D70 -> 487
A71: 67 | B71: Somolíková Emilie | C71: KK Velké Popovice | D71: 356 | E71: 130 | F71: 8 | G71: =E71+D71 -> 486
A72: 68 | B72: Plachý Pavel | C72: SK Meteor Praha | D72: 352 | E72: 130 | F72: 5 | G72: =E72+D72 -> 482
A73: 69 | B73: Chlumský Vlastimil | C73: KK Konstruktiva Praha | D73: 334 | E73: 147 | F73: 7 | G73: =E73+D73 -> 481
A74: 70 | B74: Kašpar Jiří | C74: Sokol Kobylisy | D74: 342 | E74: 138 | F74: 13 | G74: =E74+D74 -> 480
A75: 71 | B75: Šuterová Nela | C75: SKK Podbořany | D75: 320 | E75: 160 | F75: 2 | G75: =E75+D75 -> 480
A76: 72 | B76: Kohlíčková Lenka | C76: TJ Jiskra Nový Bor | D76: 328 | E76: 151 | F76: 7 | G76: =E76+D76 -> 479
A77: 73 | B77: Zeman Tadeáš | C77: SKK Podbořany | D77: 331 | E77: 144 | F77: 13 | G77: =E77+D77 -> 475
A78: 74 | B78: Ambrová Kateřina | C78: TJ Sokol Duchcov | D78: 334 | E78: 141 | F78: 12 | G78: =E78+D78 -> 475
A79: 75 | B79: Křemen Petr | C79: TJ Sokol Chotoviny | D79: 327 | E79: 148 | F79: 10 | G79: =E79+D79 -> 475
A80: 76 | B80: Krákora Vojtěch | C80: AC Sparta Praha | D80: 326 | E80: 149 | F80: 5 | G80: =E80+D80 -> 475
A81: 77 | B81: Školová Dana | C81: SK Uhelné sklady | D81: 329 | E81: 145 | F81: 8 | G81: =E81+D81 -> 474
A82: 78 | B82: Dejdová Zdeňka | C82: KK Jiří Poděbrady | D82: 329 | E82: 145 | F82: 6 | G82: =E82+D82 -> 474
A83: 79 | B83: Plachý Pavel | C83: SK Meteor Praha | D83: 325 | E83: 148 | F83: 8 | G83: =E83+D83 -> 473
A84: 80 | B84: Školová Dana | C84: SK Uhelné sklady | D84: 349 | E84: 116 | F84: 11 | G84: =E84+D84 -> 465
A85: 81 | B85: Sýkorová Šárka | C85: SK Škoda VS Plzeň | D85: 328 | E85: 137 | F85: 9 | G85: =E85+D85 -> 465
A86: 82 | B86: Vesecký Stanislav | C86: KK Konstruktiva Praha | D86: 342 | E86: 121 | F86: 10 | G86: =E86+D86 -> 463
A87: 83 | B87: Roubková Blanka | C87: TJ Sokol Chýnov | D87: 318 | E87: 137 | F87: 11 | G87: =E87+D87 -> 455
A88: 84 | B88: Jurásek Pavel | C88: TJ Jiskra Otrokovice | D88: 342 | E88: 111 | F88: 15 | G88: =E88+D88 -> 453
A89: 85 | B89: Holanová Kateřina | C89: KK Slavoj Praha | D89: 315 | E89: 138 | F89: 7 | G89: =E89+D89 -> 453
A90: 86 | B90: Makovcová Alena | C90: TJ Sokol Chotoviny | D90: 330 | E90: 119 | F90: 13 | G90: =E90+D90 -> 449
A91: 87 | B91: Sailerová Anna | C91: SK Žižkov Praha | D91: 318 | E91: 131 | F91: 13 | G91: =E91+D91 -> 449
A92: 88 | B92: Vlková Ivana | C92: SK Meteor Praha | D92: 310 | E92: 137 | F92: 11 | G92: =E92+D92 -> 447
A93: 89 | B93: Radová Monika | C93: TJ VTŽ Chomutov | D93: 324 | E93: 108 | F93: 15 | G93: =E93+D93 -> 432
A94: 90 | B94: Kotalová Eva | C94: TJ Sokol Kdyně | D94: 306 | E94: 98 | F94: 34 | G94: =E94+D94 -> 404
A95: 91 | B95: Radová Leona | C95: TJ VTŽ Chomutov | D95: 292 | E95: 109 | F95: 21 | G95: =E95+D95 -> 401
A96: 92 | B96: Šedivcová Jitka | C96: TJ Sokol Chýnov | D96: 256 | E96: 93 | F96: 29 | G96: =E96+D96 -> 349
A97: 93 | G97: =E97+D97 -> 0
A98: 94 | G98: =E98+D98 -> 0
A99: 95 | G99: =E99+D99 -> 0
A100: 96 | G100: =E100+D100 -> 0
A101: 97 | G101: =E101+D101 -> 0
A102: 98 | G102: =E102+D102 -> 0
A103: 99 | G103: =E103+D103 -> 0
A104: 100 | G104: =E104+D104 -> 0
A105: 101 | G105: =E105+D105 -> 0
A106: 102 | G106: =E106+D106 -> 0
A107: 103 | G107: =E107+D107 -> 0

Sheet Dorost (hidden)
A1: pořadí | B1: JMÉNO | C1: ODDÍL | D1: P | E1: D | F1: CH | G1: Celk. | H1: Kategorie
A2: 1 | G2: =D2+E2 -> 0 | I2: =MAX(D:D) -> 0 | J2: =MAX(E:E) -> 0
A3: 2 | G3: 0
A4: 3 | G4: 0
A5: 4 | G5: 0
A6: 5 | G6: 0
A7: 6 | G7: 0
A8: 7 | G8: 0
A9: 8 | G9: 0
A10: 9
A11: 10
A12: 11.
A13: 12.
A14: 13.
A15: 14.
A16: 15.
A17: 16.
A18: 17.
A19: 18.
A20: 19.
A21: 20.
A22: 21.
A23: 22.
A24: 23.
A25: 24.
A26: 25.
A27: 26.
A28: 27.
A29: 28.
A30: 29.
A31: 30.
A32: 31.
A33: 32.
A34: 33.
A35: 34.
A36: 35.
A37: 36.
A38: 37.
A39: 38.
A40: 39.
A41: 40.
A42: 41.
A43: 42.
A44: 43.
A45: 44.
A46: 45.
A47: 46.
A48: 47.
A49: 48.
A50: 49.
A51: 50.
A52: 51.
A53: 52.
A54: 53.
A55: 54.
A56: 55.
A57: 56.
A58: 57.
A59: 58.
A60: 59.
A61: 60.
A62: 61.
A63: 62.
A64: 63.
A65: 64.
A66: 65.
A67: 66.
A68: 67.
A69: 68.
A70: 69.
A71: 70.
A72: 71.
A73: 72.
A74: 73.
A75: 74.
A76: 75.
A77: 76.
A78: 77.
A79: 78.
A80: 79.
A81: 80.
A82: 81.
A83: 82.
A84: 83.
A85: 84.
A86: 85.
A87: 86.
A88: 87.
A89: 88.
A90: 89.
A91: 90.
A92: 91
